bitfinex/quotes_ETHUSD_20250131
["timestamp","ask_amount","ask_price","bid_price","bid_amount"]
[1738317950874,3.06573,3261.9,3261.3,3.62376]
[1738317951025,3.06573,3261.9,3261.5,0.5575]
[1738317951668,3.06573,3261.9,3261.4,0.5575]
[1738317951871,3.06599,3261.6,3261.4,0.5575]
[1738317952733,3.06599,3261.6,3261.3,0.0075]
[1738317955235,0.61475157,3261.7,3261.3,0.0075]
[1738317955417,3.68066157,3261.7,3261.3,0.0075]
[1738317957466,3.68066157,3261.7,3261.3,0.5575]
[1738317958158,3.06599,3261.6,3261.3,0.0075]
[1738317959756,0.61475157,3261.7,3261.5,0.5575]
[1738317960440,0.61475157,3261.7,3261.6,1.3616]
[1738317960754,3.68063157,3261.7,3261.6,0.55]
[1738317961676,3.06623,3261.4,3261.1,1.3803]
[1738317961871,3.06646,3261.1,3260.8,8.93]
[1738317962053,3.06663,3260.9,3260.8,9.48]
[1738317962257,3.06663,3260.9,3260.8,0.55]
[1738317962566,3.09624401,3260.9,3260.8,0.55]
[1738317962971,0.02961401,3260.9,3260.8,0.55]
[1738317963139,3.06656,3261.0,3260.8,0.55]
[1738317963345,3.09624401,3260.9,3260.8,0.55]
[1738317963548,3.06688,3260.7,3260.4,0.0075]
[1738317964070,0.02931389,3260.6,3260.4,0.0075]
[1738317964574,3.06688,3260.7,3260.4,0.0075]
[1738317964872,0.62597721,3260.9,3260.6,0.55]
[1738317965072,0.62597721,3260.9,3260.8,0.5575]
[1738317966068,3.88652,3261.4,3260.9,0.0075]
[1738317966476,3.06626,3261.3,3260.9,0.0075]
[1738317966947,3.6790047,3261.2,3260.9,0.0075]
[1738317967147,3.06645,3261.1,3260.9,0.0075]
[1738317967348,3.06645,3261.1,3260.7,0.0075]
[1738317968938,3.06645,3261.1,3260.8,0.0075]
[1738317969672,3.06645,3261.1,3260.6,0.5575]
[1738317969974,3.06656,3261.0,3260.6,0.5575]
[1738317970152,3.06656,3261.0,3260.7,0.0075]
[1738317970346,3.06656,3261.0,3260.6,0.5575]
[1738317970347,3.06679,3260.8,3260.4,0.55]
[1738317970547,3.06683,3260.7,3260.4,0.55]
[1738317970751,3.067,3260.6,3260.3,0.55]
[1738317970969,3.06707,3260.5,3260.3,0.55]
[1738317971362,3.06681,3260.8,3260.3,0.0075]
[1738317971561,3.06681,3260.8,3260.3,0.5575]
[1738317971881,6.13362,3260.8,3260.3,0.5575]
[1738317972050,3.06687,3260.7,3260.3,0.5575]
[1738317972376,6.13362,3260.8,3260.3,0.5575]
[1738317972875,0.75587805,3260.8,3260.1,0.565]
[1738317973186,3.06702,3260.5,3260.1,0.565]
[1738317973766,3.6879262,3260.5,3260.1,0.565]
[1738317974276,0.02923249,3260.4,3260.1,0.565]
[1738317975382,0.02923249,3260.4,3260.1,0.0075]
[1738317975742,0.02923249,3260.4,3260.1,0.015]
[1738317976589,3.06723,3260.3,3260.1,0.0075]
[1738317976752,0.02923249,3260.4,3260.1,0.0075]
[1738317977084,3.6879262,3260.5,3260.1,0.0075]
[1738317977303,0.02923249,3260.3,3260.1,0.0075]
[1738317977601,0.6209062,3260.5,3260.3,0.015]
[1738317977887,0.6209062,3260.5,3260.4,0.5575]
[1738317978902,3.86455,3261.5,3261.0,0.015]
[1738317979046,3.06618,3261.4,3261.0,0.565]
[1738317979693,3.86455,3261.5,3261.0,0.015]
[1738317979861,0.60850869,3261.2,3261.0,0.015]
[1738317980042,0.60850869,3261.2,3260.6,0.55]
[1738317980249,3.06659,3261.0,3260.6,0.55]
[1738317981181,3.06654,3261.1,3260.7,0.015]
[1738317981381,0.60850869,3261.2,3260.7,0.015]
[1738317981586,0.60850869,3261.2,3260.9,0.5575]
[1738317981959,0.60850869,3261.2,3261.1,0.5575]
[1738317983283,3.67487869,3261.2,3260.9,0.0075]
[1738317983658,0.60850869,3261.2,3260.9,0.0075]
[1738317983865,3.0,3261.4,3261.1,0.5575]
[1738317984066,3.06626,3261.3,3261.0,0.565]
[1738317984262,3.69717728,3261.3,3261.0,0.0075]
[1738317985162,3.69717728,3261.3,3260.8,0.55]
[1738317985375,3.06651,3261.1,3260.8,0.55]
[1738317985553,3.0666,3261.0,3260.8,0.55]
[1738317985749,0.02919178,3260.9,3260.8,0.5575]
[1738317986403,0.02919178,3260.9,3260.8,3.63173]
[1738317986571,0.60176111,3261.3,3260.9,0.015]
[1738317986766,0.60176111,3261.3,3261.1,0.0075]
[1738317988083,3.66807111,3261.3,3260.9,0.015]
[1738317988285,0.60176111,3261.3,3260.9,0.03066293]
[1738317988489,0.60176111,3261.3,3260.8,3.61665]
[1738317988893,0.60176111,3261.3,3260.9,0.015]
[1738317989439,3.06623,3261.4,3261.1,0.0075]
[1738317990736,3.68101262,3261.4,3261.0,0.0075]
[1738317991099,3.06627,3261.3,3261.0,0.0075]
[1738317991414,3.06637,3261.2,3261.0,0.0075]
[1738317992758,0.02928338,3261.1,3261.0,0.0075]
[1738317993936,0.61478262,3261.4,3261.0,0.5575]
[1738317994138,0.02925794,3261.3,3261.0,0.97872731]
[1738317996156,3.09558794,3261.3,3261.0,0.0075]
[1738317996318,0.02925794,3261.3,3261.0,0.0075]
[1738317996523,0.02925794,3261.3,3261.0,0.5575]
[1738317996721,3.06641,3261.2,3261.0,0.0075]
[1738317997037,3.09578862,3261.1,3260.8,0.55]
[1738317997721,3.09578862,3261.1,3260.9,0.0075]
[1738317998849,6.16229862,3261.1,3260.9,0.0075]
[1738317999160,3.06665,3260.9,3260.6,0.55]
[1738317999357,0.02929354,3260.8,3260.7,0.0075]
[1738318000640,3.06659,3261.0,3260.7,0.0075]
[1738318001163,0.02929354,3260.9,3260.7,0.0075]
[1738318002276,0.02929354,3260.9,3260.8,4.38393]
[1738318002428,0.60521126,3261.0,3260.9,0.0075]
[1738318002623,3.06628,3261.3,3260.9,0.0075]
[1738318002949,6.06617,3261.4,3261.1,0.0075]
[1738318003154,0.62048261,3261.2,3261.1,0.0075]
[1738318004439,3.89653,3261.7,3261.3,0.55]
[1738318005428,0.60895244,3261.4,3261.3,0.55]
[1738318007189,0.60895244,3261.4,3261.2,0.0075]
[1738318007554,0.02926302,3261.3,3261.2,0.0075]
[1738318007952,0.02926302,3261.3,3261.2,3.08135]
[1738318008194,3.0,3261.8,3261.3,0.5575]
[1738318009391,0.61702615,3261.5,3261.3,0.5575]
[1738318010610,0.61702615,3261.5,3261.3,3.62373]
[1738318011159,0.61702615,3261.5,3261.3,0.5575]
[1738318014219,0.61702615,3261.5,3261.2,0.015]
[1738318019684,0.61702615,3261.5,3261.2,0.0075]
[1738318019893,4.50824615,3261.5,3261.2,0.0075]
[1738318020872,3.06628,3261.3,3261.1,0.55]
[1738318021072,3.06628,3261.3,3260.9,0.55]
[1738318021669,3.06628,3261.3,3261.0,0.0075]
[1738318022565,0.02944105,3261.2,3261.0,0.0075]
[1738318022718,3.06628,3261.3,3261.0,0.0075]
[1738318023370,0.02944105,3261.2,3261.0,0.0075]
[1738318023675,3.06628,3261.3,3261.0,0.0075]
[1738318023816,0.02944105,3261.1,3261.0,0.0075]
[1738318024016,3.06628,3261.3,3261.0,0.0075]
[1738318024252,0.02944105,3261.1,3261.0,0.0075]
[1738318024453,3.06628,3261.3,3261.0,0.0075]
[1738318024649,0.02944105,3261.1,3261.0,0.0075]
[1738318024849,3.06628,3261.3,3261.0,0.0075]
[1738318025471,0.02944105,3261.2,3261.0,0.0075]
[1738318025874,3.06628,3261.3,3261.0,0.0075]
[1738318026033,0.02944105,3261.1,3261.0,0.0075]
[1738318026539,3.06628,3261.3,3261.0,0.0075]
[1738318026734,0.02944105,3261.2,3261.0,0.0075]
[1738318026939,4.50823615,3261.5,3261.1,0.55]
[1738318027176,0.02944105,3261.4,3261.1,0.55]
[1738318027376,3.09561105,3261.4,3260.9,3.62412]
[1738318027728,0.02944105,3261.4,3260.8,0.55]
[1738318027953,3.0665,3261.1,3260.8,0.55]
[1738318028156,3.8258,3261.0,3260.8,0.55]
[1738318028358,3.8258,3261.0,3260.5,0.55]
[1738318028359,3.06676,3260.8,3260.5,0.55]
[1738318028517,3.0667,3260.9,3260.2,3.06726]
[1738318028771,3.0667,3260.9,3260.3,0.55]
[1738318028772,3.06692,3260.6,3260.3,0.55]
[1738318029094,0.02919688,3260.5,3260.2,0.5575]
[1738318029858,0.02919688,3260.5,3259.8,3.07512]
[1738318029859,3.06731,3260.2,3259.9,0.55]
[1738318030059,0.816,3260.4,3259.9,0.55]
[1738318030060,3.06725,3260.3,3259.9,0.55]
[1738318030279,3.09648494,3260.1,3259.9,0.55]
[1738318030458,3.06725,3260.3,3259.8,0.5575]
[1738318030663,0.02907986,3260.0,3259.8,0.5575]
[1738318030897,3.68245724,3260.3,3259.8,0.5575]
[1738318031084,0.02907986,3259.9,3259.8,0.5575]
[1738318031278,3.06729,3260.2,3259.8,0.5575]
[1738318031463,0.02907986,3259.9,3259.8,0.5575]
[1738318031663,3.06729,3260.2,3259.8,0.5575]
[1738318031863,0.0288712,3259.9,3259.8,0.5575]
[1738318032064,3.06729,3260.2,3259.8,0.5575]
[1738318032282,0.0288712,3259.9,3259.8,0.5575]
[1738318032508,3.06729,3260.2,3259.8,0.5575]
[1738318032716,0.0288712,3259.9,3259.8,0.5575]
[1738318033216,3.06729,3260.2,3259.8,0.5575]
[1738318033375,0.0288712,3259.9,3259.8,0.5575]
[1738318033575,3.06729,3260.2,3259.8,0.5575]
[1738318033776,0.02884576,3260.1,3259.8,0.5575]
[1738318036285,0.39998006,3260.1,3259.6,0.55]
[1738318036442,3.06771,3259.8,3259.5,2.428]
[1738318036946,3.09658031,3259.7,3259.5,2.428]
[1738318039148,0.41601834,3259.7,3259.5,2.428]
[1738318039327,3.06786,3259.6,3259.5,2.428]
[1738318041035,0.38719803,3259.7,3259.5,2.428]
[1738318041349,3.06777,3259.7,3259.5,2.428]
[1738318042027,3.06786,3259.6,3259.5,2.428]
[1738318042438,3.67774665,3259.6,3259.5,2.428]
[1738318043710,4.47084665,3259.6,3259.5,2.428]
[1738318044743,3.06807,3259.4,3259.0,0.5575]
[1738318045119,4.47084665,3259.6,3259.0,3.6259]
[1738318045120,3.06795,3259.5,3259.0,3.6259]
[1738318046238,4.47084665,3259.6,3259.0,3.6259]
[1738318046435,7.53879665,3259.6,3259.0,3.6259]
[1738318047039,3.06796,3259.5,3259.0,3.6259]
[1738318047242,1.40298665,3259.6,3259.0,0.55]
[1738318047442,3.06811,3259.4,3259.0,0.55]
[1738318047948,3.06821,3259.3,3259.0,0.55]
[1738318050426,3.06795,3259.5,3259.0,0.55]
[1738318050836,3.06823,3259.3,3259.0,0.55]
[1738318051750,3.06832,3259.2,3258.9,0.1681346]
[1738318052048,3.84266,3259.1,3258.9,0.1681346]
[1738318053433,0.7743,3259.1,3258.9,0.1681346]
[1738318055760,3.06842,3259.0,3258.9,0.1681346]
[1738318056058,6.06842,3259.0,3258.9,0.1681346]
[1738318056268,7.359525,3259.0,3258.9,0.1681346]
[1738318057418,7.98530929,3259.0,3258.9,0.1681346]
[1738318058925,3.62578429,3259.0,3258.9,0.1681346]
[1738318059263,6.69420429,3259.0,3258.9,0.1681346]
[1738318062871,3.62578429,3259.0,3258.9,0.1681346]
[1738318063034,0.62578429,3259.0,3258.9,0.1681346]
[1738318063430,3.8392,3259.6,3259.0,0.55]
[1738318063864,0.62252988,3259.3,3259.0,0.55]
[1738318065066,3.69068988,3259.3,3259.0,0.55]
[1738318066566,0.62252988,3259.3,3259.0,0.55]
[1738318067252,3.69067988,3259.3,3259.0,0.55]
[1738318067975,0.62252988,3259.3,3259.0,0.55]
[1738318068146,3.69066988,3259.3,3259.0,0.55]
[1738318068650,0.62252988,3259.3,3259.0,0.55]
[1738318072078,3.69067988,3259.3,3259.0,0.55]
[1738318075072,0.62252988,3259.3,3259.0,0.55]
[1738318075262,3.06791,3259.6,3259.2,1.3093]
[1738318075644,3.06776,3259.7,3259.2,1.3093]
[1738318075842,3.06791,3259.6,3259.2,1.3093]
[1738318076473,3.06781,3259.7,3259.2,1.3093]
[1738318076679,3.0679,3259.6,3259.2,1.3093]
[1738318076879,3.06781,3259.7,3259.2,1.3093]
[1738318077075,3.68785672,3259.5,3259.2,1.3093]
[1738318079685,0.61990672,3259.5,3259.2,1.3093]
[1738318083265,3.0684,3259.1,3258.9,0.1681346]
[1738318083473,3.06842,3259.0,3258.9,0.1681346]
[1738318089558,3.69544908,3259.0,3258.9,0.1681346]
[1738318090568,4.46184908,3259.0,3258.9,0.1681346]
[1738318095782,6.13682,3259.1,3258.9,0.9813346]
[1738318095984,6.13682,3259.1,3258.9,0.1681346]
[1738318096386,3.06842,3259.0,3258.9,0.1681346]
[1738318096574,6.06842,3259.0,3258.9,0.1681346]
[1738318096775,6.85392,3259.0,3258.9,0.1681346]
[1738318098132,7.48029898,3259.0,3258.9,0.1681346]
[1738318116358,6.69479898,3259.0,3258.9,0.1681346]
[1738318117274,7.73248708,3259.0,3258.9,0.1681346]
[1738318134763,8.50268708,3259.0,3258.9,0.1681346]
[1738318140693,3.6385443,3260.1,3258.9,0.1681346]
[1738318140694,3.06815,3259.3,3258.9,0.1681346]
[1738318140865,3.06797,3259.5,3259.0,0.8018]
[1738318141060,6.06811,3259.4,3259.0,0.8018]
[1738318141304,3.0,3259.4,3259.0,0.8018]
[1738318141543,0.62047569,3259.2,3259.0,0.8018]
[1738318141839,3.68872569,3259.2,3259.0,0.8018]
[1738318143227,0.62047569,3259.2,3259.0,0.8018]
[1738318145256,3.68870569,3259.2,3259.0,0.8018]
[1738318145552,3.68871569,3259.2,3259.0,0.8018]
[1738318146554,0.62047569,3259.2,3259.0,0.8018]
[1738318146756,3.06833,3259.1,3258.9,0.1681346]
[1738318146906,3.06842,3259.0,3258.9,0.1681346]
[1738318154216,0.62047569,3259.2,3259.0,0.8211]
[1738318154420,3.06833,3259.1,3259.0,0.8211]
[1738318154936,0.62047569,3259.2,3259.0,0.8211]
[1738318155145,3.68875569,3259.2,3259.0,0.8211]
[1738318155352,3.06833,3259.1,3259.0,0.8211]
[1738318155553,3.06803,3259.5,3259.1,0.0075]
[1738318155753,3.06758,3259.9,3259.3,0.8255]
[1738318155970,0.6248926,3259.7,3259.4,0.55]
[1738318156123,0.6248926,3259.7,3259.4,0.99436]
[1738318156778,3.06755,3260.0,3259.5,0.7777]
[1738318156974,0.62661086,3259.9,3259.5,0.7777]
[1738318157330,3.69419086,3259.9,3259.5,0.7777]
[1738318158120,3.06773,3259.8,3259.5,0.7777]
[1738318159818,6.69421086,3259.9,3259.5,0.7777]
[1738318160124,3.62661086,3259.9,3259.5,0.7777]
[1738318160335,6.69418086,3259.9,3259.5,0.7777]
[1738318160470,3.69418086,3259.9,3259.5,0.7777]
[1738318160832,0.62661086,3259.9,3259.5,1.217268]
[1738318160992,0.62661086,3259.9,3259.5,4.285218]
[1738318161599,0.62661086,3259.9,3259.5,1.217268]
[1738318162819,3.06755,3260.0,3259.5,1.217268]
[1738318162993,3.06755,3260.0,3259.6,0.4835308]
[1738318163190,3.68756711,3260.0,3259.6,0.4835308]
[1738318164718,3.06732,3260.2,3259.7,0.5575]
[1738318164920,3.06732,3260.2,3259.8,0.7615]
[1738318165079,0.5995871,3260.1,3259.8,0.7615]
[1738318165278,0.5995871,3260.1,3259.8,1.24852508]
[1738318166319,0.5995871,3260.1,3259.8,0.7615]
[1738318170747,0.5995871,3260.1,3259.8,3.82911]
[1738318171122,3.0,3260.5,3260.0,3.06748]
[1738318171302,3.06692,3260.6,3260.2,0.7995]
[1738318171646,7.04728,3260.6,3260.2,0.7995]
[1738318171851,3.98029,3260.6,3260.2,0.7995]
[1738318172298,7.04728,3260.6,3260.2,0.7995]
[1738318172498,3.06703,3260.5,3260.2,0.7995]
[1738318173143,0.62249026,3260.3,3260.2,0.7995]
[1738318179170,3.06732,3260.2,3259.8,0.8217]
[1738318179761,3.06757,3259.9,3259.5,1.3717]
[1738318180079,6.13522,3259.9,3259.5,1.3717]
[1738318180233,3.0,3260.1,3259.7,0.55]
[1738318180727,6.06745,3260.1,3259.7,0.55]
[1738318181244,6.06745,3260.1,3259.5,0.8217]
[1738318181587,3.0675,3260.0,3259.6,0.55]
[1738318187387,6.06744,3260.1,3259.6,3.61784]
[1738318189392,3.06748,3260.0,3259.6,3.61784]
[1738318191643,3.06748,3260.0,3259.6,0.55]
[1738318192249,6.13505,3260.0,3259.6,0.55]
[1738318192780,6.13504,3260.0,3259.6,0.55]
[1738318192980,3.06748,3260.0,3259.6,0.55]
[1738318193558,4.06748,3260.0,3259.6,0.55]
[1738318194161,3.0676,3259.9,3259.6,0.55]
[1738318195551,4.06748,3260.0,3259.6,0.55]
[1738318195780,7.13505,3260.0,3259.6,0.55]
[1738318197389,1.0,3259.9,3259.6,0.55]
[1738318200713,1.0,3259.9,3259.8,1.3344]
[1738318200999,1.0,3259.9,3259.8,4.40207]
[1738318201164,1.0,3259.9,3259.8,39.40207]
[1738318201366,1.0,3259.9,3259.8,4.40207]
[1738318203605,1.0,3259.9,3259.8,4.59907]
[1738318203806,1.0,3259.9,3259.8,5.6101473]
[1738318210092,1.0,3259.9,3259.8,5.4131473]
[1738318210296,1.0,3259.9,3259.8,5.6101473]
[1738318213422,2.0,3259.9,3259.8,5.6101473]
[1738318216146,2.0,3259.9,3259.8,14.57082009]
[1738318216342,2.0,3259.9,3259.8,14.5401473]
[1738318217840,2.0,3259.9,3259.8,49.5401473]
[1738318220343,2.0,3259.9,3259.8,14.5401473]
[1738318220757,2.0,3259.9,3259.8,5.6101473]
[1738318221114,2.0,3259.9,3259.8,5.4131473]
[1738318221315,2.0,3259.9,3259.8,0.5575]
[1738318221716,2.0,3259.9,3259.8,3.62517]
[1738318226454,2.0,3259.9,3259.8,4.41497]
[1738318226954,2.0,3259.9,3259.8,39.41497]
[1738318227355,2.0,3259.9,3259.8,38.63267]
[1738318227552,2.0,3259.9,3259.8,3.63267]
[1738318229355,2.0,3259.9,3259.8,4.600637]
[1738318230558,2.0,3259.9,3259.8,5.364537]
[1738318230869,2.0,3259.9,3259.8,5.39520993]
[1738318231073,2.0,3259.9,3259.8,8.39520993]
[1738318231206,2.0,3259.9,3259.8,8.364537]
[1738318231408,2.0,3259.9,3259.8,43.364537]
[1738318232603,2.0,3259.9,3259.8,52.294537]
[1738318235441,2.0,3259.9,3259.8,55.522537]
[1738318236215,2.0,3259.9,3259.8,54.491537]
[1738318236414,2.0,3259.9,3259.8,19.491537]
[1738318238123,2.0,3259.9,3259.8,54.491537]
[1738318241037,2.0,3259.9,3259.8,57.719537]
[1738318241197,2.0,3259.9,3259.8,54.491537]
[1738318242541,2.0,3259.9,3259.8,57.719537]
[1738318244634,2.0,3259.9,3259.8,15.530637]
[1738318244796,2.0,3259.9,3259.8,14.75967]
[1738318244994,2.0,3259.9,3259.8,12.56267]
[1738318245220,2.0,3259.9,3259.8,3.62517]
[1738318246195,2.0,3259.9,3259.8,5.63267]
[1738318256535,2.7714,3259.9,3259.8,5.63267]
[1738318257438,2.7714,3259.9,3259.8,3.63267]
[1738318258072,2.7714,3259.9,3259.7,0.55]
[1738318258289,3.14854,3259.9,3259.6,3.06776]
[1738318259559,3.14854,3259.9,3259.8,0.5575]
[1738318259560,2.7714,3259.9,3259.8,0.5575]
[1738318259900,2.7714,3259.9,3259.8,3.62517]
[1738318264019,2.0,3259.9,3259.8,5.63267]
[1738318264159,2.0,3259.9,3259.8,18.38857]
[1738318264554,0.7705,3261.1,3260.9,0.0075]
[1738318264785,3.06544,3262.2,3261.4,3.06616]
[1738318264786,1.37620187,3261.5,3261.4,3.06616]
[1738318265006,0.7705,3262.2,3261.5,0.5575]
[1738318265187,0.7705,3262.2,3261.8,0.5575]
[1738318265387,0.7705,3262.2,3262.1,3.0655]
[1738318265589,1.00047871,3263.9,3262.1,3.0655]
[1738318265590,0.7541,3262.6,3262.2,0.5575]
[1738318265899,0.7541,3262.6,3262.4,3.06516]
[1738318266311,0.7541,3262.6,3262.5,3.62263]
[1738318266462,0.7541,3262.6,3262.5,0.5575]
[1738318266806,0.7541,3262.6,3262.2,3.06539]
[1738318267911,1.19629096,3262.6,3262.2,3.06539]
[1738318268073,1.19629096,3262.6,3262.2,0.0075]
[1738318269196,1.19629096,3262.6,3262.1,3.62299]
[1738318269363,1.19629096,3262.6,3262.2,3.06536]
[1738318269595,0.7541,3262.6,3262.2,3.06536]
[1738318270211,0.7541,3262.6,3262.1,0.5575]
[1738318270922,3.06514,3262.5,3261.9,8.93]
[1738318271328,3.06514,3262.5,3261.9,3.06569]
[1738318273496,3.81919,3262.6,3261.9,3.06569]
[1738318273797,3.06524,3262.4,3261.9,3.06569]
[1738318273997,0.381919,3262.5,3261.9,3.06569]
[1738318274540,3.447059,3262.5,3261.9,3.06569]
[1738318274942,0.02910499,3262.4,3261.9,3.06569]
[1738318278345,0.02910499,3262.4,3261.7,3.06583]
[1738318278346,3.09438499,3262.4,3261.8,0.55]
[1738318278560,0.3476304,3262.3,3261.8,0.55]
[1738318278886,0.03014795,3262.2,3261.9,0.0075]
[1738318279059,3.447049,3262.5,3261.9,3.07314]
[1738318279266,0.03012253,3262.4,3261.9,3.07314]
[1738318280767,0.03012253,3262.4,3262.0,3.06558]
[1738318283017,0.03012253,3262.4,3261.9,3.07317]
[1738318283874,0.03012253,3262.4,3262.0,3.06559]
[1738318284512,0.03012253,3262.4,3261.9,0.0075]
[1738318284932,0.03012253,3262.4,3261.9,3.07317]
[1738318286208,0.03012253,3262.4,3262.2,0.55]
[1738318286408,0.03012253,3262.4,3262.1,0.5575]
[1738318286609,0.03015539,3262.3,3262.1,0.5575]
[1738318286833,3.0652,3262.5,3262.1,0.5575]
[1738318287066,0.03016556,3262.4,3262.1,0.5575]
[1738318287262,3.09540556,3262.4,3261.9,0.565]
[1738318287638,3.06538,3262.3,3261.9,0.0075]
[1738318287849,3.06538,3262.3,3261.8,0.55]
[1738318288036,0.83236556,3262.2,3261.9,0.0075]
[1738318289443,0.83236556,3262.2,3261.8,0.55]
[1738318289643,3.06568,3262.0,3261.4,0.55]
[1738318289943,3.0658,3261.8,3261.4,0.5575]
[1738318290327,0.03006895,3261.7,3261.4,0.5575]
[1738318290725,3.0658,3261.8,3261.4,0.5575]
[1738318290962,0.03006895,3261.7,3261.4,0.5575]
[1738318291273,3.0658,3261.8,3261.4,0.0075]
[1738318291572,0.03006895,3261.7,3261.4,0.5575]
[1738318291772,3.09595895,3261.7,3261.3,1.03011896]
[1738318292066,3.09595895,3261.7,3261.3,0.83311896]
[1738318293077,3.06601,3261.6,3261.3,0.28311896]
[1738318293280,0.86195704,3261.5,3261.3,0.28311896]
[1738318293570,7.2449567,3261.4,3261.3,0.28311896]
[1738318293810,6.85235,3261.2,3261.1,0.45299034]
[1738318294382,6.88184428,3261.2,3261.1,0.45299034]
[1738318294974,3.0,3261.1,3260.6,0.31973132]
[1738318295319,3.06679,3260.8,3260.6,0.31973132]
[1738318295469,0.02949428,3260.7,3260.6,0.31973132]
[1738318295672,3.82272,3260.7,3260.6,0.31973132]
[1738318295947,4.54116528,3260.7,3260.6,0.31973132]
[1738318300451,0.78539428,3260.7,3260.6,0.31973132]
[1738318302123,3.85221428,3260.7,3260.6,0.31973132]
[1738318302751,4.47228848,3260.7,3260.6,0.31973132]
[1738318304850,0.64956848,3260.7,3260.6,0.31973132]
[1738318305034,0.02949428,3260.7,3260.6,0.31973132]
[1738318305352,3.83024,3261.0,3260.6,0.31973132]
[1738318305524,0.7637,3261.0,3260.6,0.31973132]
[1738318305845,3.06653,3261.1,3260.6,0.31973132]
[1738318305846,0.60406635,3261.1,3260.7,3.07427]
[1738318306624,3.06635,3261.2,3260.7,3.07427]
[1738318307445,3.06635,3261.2,3260.7,0.0075]
[1738318307855,3.67172298,3261.2,3260.7,0.0075]
[1738318308758,3.85291,3260.8,3260.6,0.31973132]
[1738318309128,3.85291,3260.8,3260.3,0.0075]
[1738318309851,3.85291,3260.8,3260.2,0.0075]
[1738318310013,0.7861,3260.8,3260.4,3.06709]
[1738318310214,3.06665,3260.9,3260.4,3.06709]
[1738318311132,3.06665,3260.9,3260.2,0.29095981]
[1738318311426,3.0665,3261.1,3260.6,0.0075]
[1738318311626,3.06666,3260.9,3260.5,0.0075]
[1738318312847,3.0,3261.0,3260.5,3.07447]
[1738318313544,6.06654,3261.0,3260.5,3.07447]
[1738318314976,6.06649,3261.1,3260.6,3.06691]
[1738318315173,6.06649,3261.1,3260.7,0.7648]
[1738318315376,3.06649,3261.1,3260.7,0.7648]
[1738318315686,3.06566,3262.0,3261.4,3.06609]
[1738318315823,3.372303,3261.9,3261.3,0.0075]
[1738318316024,3.68744236,3261.7,3261.3,0.0075]
[1738318316585,0.0287719,3261.6,3261.3,0.0075]
[1738318320381,0.0287719,3261.6,3261.3,3.07375]
[1738318320589,0.0287719,3261.6,3261.3,0.0075]
[1738318320936,0.0287719,3261.6,3261.4,0.28429038]
[1738318322195,3.0947719,3261.6,3261.2,0.0075]
[1738318323087,3.0947719,3261.6,3261.3,0.28436839]
[1738318323443,3.0947619,3261.6,3261.3,0.28436839]
[1738318325086,3.0947619,3261.6,3261.4,0.28436839]
[1738318325947,3.8534619,3261.6,3261.1,0.4545052]
[1738318326189,3.06632,3261.3,3261.1,0.4545052]
[1738318326586,0.0293824,3261.2,3261.1,0.4545052]
[1738318327031,3.06632,3261.3,3261.1,0.4545052]
[1738318327342,0.0293824,3261.2,3261.1,0.4545052]
[1738318327547,3.06632,3261.3,3261.1,0.4545052]
[1738318327688,3.06632,3261.3,3260.9,0.0075]
[1738318327893,0.0293824,3261.2,3260.9,0.0075]
[1738318328432,0.0293824,3261.1,3260.9,0.0075]
[1738318328932,0.0293824,3261.1,3260.9,3.07412]
[1738318329238,0.0293824,3261.0,3260.9,3.07412]
[1738318329593,3.06617,3261.4,3260.9,3.07412]
[1738318330102,0.0293824,3261.3,3260.9,3.07412]
[1738318330303,3.0956424,3261.3,3260.8,3.63173]
[1738318333442,3.0956424,3261.3,3261.0,0.0075]
[1738318333671,0.0293824,3261.3,3261.0,0.0075]
[1738318333942,0.4992,3261.6,3261.2,3.07385]
[1738318334105,0.02925013,3261.5,3261.2,3.07385]
[1738318334693,0.02925013,3261.5,3261.3,0.28457672]
[1738318336232,0.02925013,3261.5,3261.2,3.5283552]
[1738318336433,0.02925013,3261.5,3261.4,3.07366]
[1738318336740,0.4992,3261.6,3261.4,3.87796]
[1738318336941,0.4992,3261.6,3261.5,3.07357]
[1738318337508,0.528501,3261.6,3261.5,3.5280752]
[1738318338243,0.528501,3261.6,3261.5,4.0855752]
[1738318338612,0.4992,3261.6,3261.5,4.0855752]
[1738318339434,0.528501,3261.6,3261.5,4.0855752]
[1738318339918,0.528501,3261.6,3261.5,0.4620052]
[1738318340728,0.528501,3261.6,3261.5,0.0075]
[1738318342273,0.528501,3261.6,3261.5,4.38337]
[1738318342630,0.4992,3261.6,3261.5,4.8378752]
[1738318346414,0.52891807,3261.6,3261.5,4.8378752]
[1738318347948,0.4992,3261.6,3261.5,4.8378752]
[1738318352151,0.52891807,3261.6,3261.5,4.8378752]
[1738318352347,0.4992,3261.6,3261.5,0.4620052]
[1738318352554,0.52891807,3261.6,3261.5,0.4620052]
[1738318352975,0.4992,3261.6,3261.5,0.4620052]
[1738318353283,0.4992,3261.6,3261.5,0.0075]
[1738318353778,0.52891299,3261.6,3261.5,0.0075]
[1738318356762,0.52891299,3261.6,3261.5,3.07357]
[1738318357451,0.52891299,3261.6,3261.5,3.63107]
[1738318357795,0.4992,3261.6,3261.5,3.63107]
[1738318368541,1.2814,3261.6,3261.1,8.93]
[1738318368726,4.782104,3261.6,3261.2,0.55]
[1738318369128,7.848164,3261.6,3261.1,8.93]
[1738318369330,3.06608,3261.5,3261.0,3.06649]
[1738318369535,4.782104,3261.6,3261.1,0.0075]
[1738318369733,0.4782104,3261.5,3261.1,0.0075]
[1738318369935,3.06619,3261.4,3260.9,0.31976278]
[1738318370096,0.7935,3261.3,3261.0,3.06652]
[1738318370504,0.7935,3261.3,3260.9,0.0075]
[1738318372250,3.85977,3261.3,3260.9,0.0075]